bitfinex-derivatives/quotes_BNBF0:USTF0_20250617
["timestamp","ask_amount","ask_price","bid_price","bid_amount"]
[1750165570410,1.14257784,654.55,653.87,1.33]
[1750165570607,1.14257784,654.54,653.87,1.33]
[1750165571110,1.14257784,654.55,653.87,1.33]
[1750165572511,1.14257784,654.54,653.87,2.47100258]
[1750165573007,1.14257784,654.53,653.87,2.47100258]
[1750165573211,1.14257784,654.61,653.87,1.33]
[1750165573408,1.14257784,654.6,653.87,1.33]
[1750165573810,1.14257784,654.61,653.87,1.33]
[1750165576114,1.14257784,654.64,653.87,1.33]
[1750165576514,1.40853021,654.65,653.87,1.33]
[1750165579716,0.26595237,654.65,653.87,1.33]
[1750165580317,1.40853021,654.65,653.87,1.33]
[1750165580713,0.26595237,654.65,653.87,1.33]
[1750165581313,1.40853021,654.65,653.87,1.33]
[1750165581712,0.26595237,654.65,653.87,1.33]
[1750165582613,0.26595237,654.65,653.88,1.65]
[1750165588125,0.26595237,654.65,653.89,1.411]
[1750165591623,1.14257784,654.63,653.9,1.14100258]
[1750165592729,1.14257784,654.63,653.91,1.14100258]
[1750165593333,1.14257784,654.61,653.92,1.14100258]
[1750165593529,1.14257784,654.62,653.92,1.14100258]
[1750165593929,1.14257784,654.61,653.92,1.14100258]
[1750165594230,1.14257784,654.61,653.93,1.14100258]
[1750165594931,1.14257784,654.6,653.94,1.14100258]
[1750165595432,1.14257784,654.59,653.95,1.14100258]
[1750165596436,1.14257784,654.58,653.96,1.14100258]
[1750165597334,1.14257784,654.57,653.97,1.14100258]
[1750165597638,1.14257784,654.56,653.99,1.14100258]
[1750165598333,1.14257784,654.59,653.94,1.14100258]
[1750165598538,1.14257784,654.59,653.95,1.372]
[1750165599042,1.14257784,654.6,653.95,1.372]
[1750165599240,1.14257784,654.6,653.96,1.466]
[1750165599441,1.14257784,654.61,653.96,1.466]
[1750165602341,1.14257784,654.6,653.96,1.466]
[1750165605747,1.14257784,654.59,653.96,1.466]
[1750165607248,1.14257784,654.59,653.97,1.032]
[1750165607946,1.14257784,654.6,653.97,1.032]
[1750165608351,1.14257784,654.59,653.97,1.032]
[1750165608849,1.14257784,654.58,653.97,1.032]
[1750165609251,1.14257784,654.58,653.99,1.14100258]
[1750165609546,1.14257784,654.58,653.97,1.032]
[1750165609547,1.14257784,654.59,654.0,1.14100258]
[1750165609750,1.14257784,654.6,654.01,1.14100258]
[1750165610345,1.14257784,654.6,654.02,1.14100258]
[1750165610650,1.14257784,654.62,653.99,1.14100258]
[1750165612247,1.14257784,654.62,654.0,1.14100258]
[1750165612449,1.14257784,654.62,653.99,1.14100258]
[1750165612752,1.14257784,654.64,653.97,1.032]
[1750165614254,1.14257784,654.63,653.97,1.032]
[1750165614554,1.14257784,654.64,653.97,2.17300258]
[1750165615351,1.14257784,654.69,654.01,1.14100258]
[1750165615650,1.14257784,654.69,654.0,1.14100258]
[1750165615954,1.14257784,654.69,654.01,1.14100258]
[1750165616653,1.14257784,654.69,654.02,1.44]
[1750165617350,1.14257784,654.69,654.02,2.58100258]
[1750165617552,1.14257784,654.69,654.02,1.44]
[1750165618254,1.14257784,654.69,654.02,2.58100258]
[1750165618449,1.14257784,654.69,654.02,1.44]
[1750165618654,1.14257784,654.69,654.02,2.58100258]
[1750165620357,1.14257784,654.68,654.03,1.14100258]
[1750165621255,1.14257784,654.69,654.02,2.58100258]
[1750165621453,1.14257784,654.7,654.02,1.44]
[1750165621752,1.14257784,654.69,654.02,2.58100258]
[1750165622356,1.14257784,654.68,654.02,2.58100258]
[1750165622556,1.14257784,654.68,654.04,1.14100258]
[1750165623157,1.14257784,654.68,654.03,1.14100258]
[1750165623656,1.14257784,654.68,654.04,2.36900258]
[1750165624157,1.14257784,654.68,654.04,1.228]
[1750165625052,1.14257784,654.67,654.05,1.14100258]
[1750165625353,1.14257784,654.67,654.04,2.36900258]
[1750165625557,1.14257784,654.67,654.05,1.14100258]
[1750165626257,1.14257784,654.67,654.04,2.36900258]
[1750165627457,1.14257784,654.78,654.15,1.14100258]
[1750165627854,1.14257784,654.78,654.16,1.14100258]
[1750165628258,1.14257784,654.78,654.15,1.14100258]
[1750165629356,0.26586601,654.9,654.14,1.14100258]
[1750165629357,1.14257784,654.79,654.14,1.14100258]
[1750165630153,1.14257784,654.8,654.14,1.14100258]
[1750165630654,1.14257784,654.8,654.13,1.14100258]
[1750165631054,1.14257784,654.79,654.13,1.14100258]
[1750165631254,1.14257784,654.8,654.13,1.14100258]
[1750165632455,1.14257784,654.77,654.17,1.14100258]
[1750165632656,1.14257784,654.77,654.18,1.14100258]
[1750165632854,1.14257784,654.76,654.19,1.14100258]
[1750165633261,1.14257784,654.76,654.2,1.379]
[1750165633462,1.14257784,654.77,654.2,1.379]
[1750165634062,1.14257784,654.81,654.2,1.379]
[1750165634262,1.14257784,654.77,654.2,1.379]
[1750165634762,1.14257784,654.74,654.2,1.379]
[1750165635162,1.14257784,654.73,654.2,1.379]
[1750165635362,1.14257784,654.73,654.21,1.325]
[1750165635559,1.14257784,654.69,654.21,1.325]
[1750165636264,1.14257784,654.73,654.21,1.325]
[1750165636660,1.14257784,654.72,654.21,1.325]
[1750165638665,1.14257784,654.68,654.21,1.325]
[1750165639162,1.14257784,654.68,654.22,1.052]
[1750165641865,1.14257784,654.67,654.22,1.052]
[1750165642062,1.14257784,654.65,654.22,1.052]
[1750165642265,1.14257784,654.64,654.22,1.052]
[1750165642465,1.14257784,654.65,654.22,1.052]
[1750165642765,1.14257784,654.64,654.22,1.052]
[1750165644367,1.14257784,654.65,654.22,1.052]
[1750165644563,1.14257784,654.68,654.22,1.052]
[1750165648366,1.14257784,654.67,654.22,1.052]
[1750165649467,1.14257784,654.67,654.23,1.44]
[1750165652470,1.14257784,654.66,654.23,1.44]
[1750165653175,1.14257784,654.67,654.23,1.44]
[1750165653471,1.14257784,654.66,654.23,1.44]
[1750165653773,1.14257784,654.67,654.23,1.44]
[1750165654076,1.14257784,654.66,654.23,1.44]
[1750165654373,1.14257784,654.64,654.24,1.248]
[1750165656278,0.26586601,654.9,654.24,1.248]
[1750165656279,1.14257784,654.63,654.24,1.248]
[1750165656477,1.14257784,654.62,654.24,1.248]
[1750165656777,1.14257784,654.55,654.24,1.248]
[1750165656979,1.14257784,654.56,654.24,1.248]
[1750165657277,1.14257784,654.54,654.24,1.248]
[1750165657874,1.14257784,654.53,654.24,1.248]
[1750165658379,1.14257784,654.54,654.24,1.248]
[1750165658981,1.14257784,654.53,654.24,1.248]
[1750165659179,1.14257784,654.54,654.24,1.248]
[1750165661378,1.14257784,654.53,654.24,1.248]
[1750165661779,1.14257784,654.54,654.25,1.226]
[1750165665688,1.14257784,654.55,654.25,1.226]
[1750165665885,1.14257784,654.55,654.26,1.127]
[1750165666991,1.14257784,654.54,654.26,1.127]
[1750165667187,1.14257784,654.55,654.26,1.127]
[1750165668692,1.14257784,654.54,654.26,1.127]
[1750165669193,1.14257784,654.55,654.26,1.127]
[1750165670292,1.52343712,654.69,654.26,1.127]
[1750165670492,1.14261826,654.55,654.26,1.127]
[1750165671695,1.14261826,654.56,654.26,1.127]
[1750165673900,1.14261826,654.55,654.26,1.127]
[1750165674199,1.14261826,654.56,654.26,1.127]
[1750165674405,1.14261826,654.55,654.26,1.127]
[1750165675706,1.14261826,654.55,654.27,1.275]
[1750165676499,1.14261826,654.48,654.27,1.275]
[1750165677603,1.14261826,654.46,654.27,1.275]
[1750165677801,0.26586601,654.9,654.28,1.439]
[1750165677802,1.14261826,654.44,654.28,1.439]
[1750165678402,1.14261826,654.41,654.28,1.439]
[1750165679707,1.14261826,654.42,654.28,1.439]
[1750165680506,1.14261826,654.39,654.28,1.439]
[1750165680708,1.14261826,654.34,654.28,1.439]
[1750165680905,1.14261826,654.33,654.28,1.439]
[1750165681104,0.26586601,654.9,654.28,1.439]
[1750165681105,1.14261826,654.3,654.28,1.439]
[1750165681404,1.14261826,654.29,654.28,1.439]
[1750165681909,1.52343712,654.41,654.28,1.439]
[1750165682109,0.26586601,654.9,654.28,1.439]
[1750165682110,1.52343712,654.39,654.28,1.439]
[1750165682310,1.52343712,654.41,654.28,1.439]
[1750165682507,1.52343712,654.4,654.28,1.439]
[1750165683412,1.14041072,654.3,654.28,1.439]
[1750165684110,1.52343712,654.38,654.28,1.439]
[1750165684305,1.52343712,654.39,654.28,1.439]
[1750165684605,1.52343712,654.37,654.28,1.439]
[1750165685210,1.52343712,654.38,654.28,1.439]
[1750165685505,1.52343712,654.36,654.28,1.439]
[1750165686105,1.52343712,654.37,654.28,1.439]
[1750165686409,1.52343712,654.38,654.28,1.439]
[1750165686809,1.52343712,654.37,654.28,1.439]
[1750165687007,1.52343712,654.38,654.28,1.439]
[1750165687212,1.52343712,654.39,654.28,1.439]
[1750165687712,1.52343712,654.4,654.28,1.439]
[1750165689107,1.52343712,654.41,654.28,1.439]
[1750165689512,1.13762995,654.29,654.28,1.439]
[1750165691110,1.13762995,654.3,654.28,1.439]
[1750165691311,1.13762995,654.31,654.28,1.439]
[1750165692409,1.13762995,654.32,654.28,1.439]
[1750165692911,1.13762995,654.34,654.28,1.439]
[1750165693112,1.13762995,654.35,654.28,1.439]
[1750165694111,1.13762995,654.36,654.28,1.439]
[1750165698118,1.13762995,654.37,654.28,1.439]
[1750165699319,1.13762995,654.36,654.28,1.439]
[1750165702821,1.13762995,654.36,654.26,1.127]
[1750165703116,1.13762995,654.35,654.26,1.127]
[1750165703522,1.13762995,654.4,654.26,1.127]
[1750165704118,1.13762995,654.41,654.19,1.14]
[1750165704817,1.13762995,654.4,654.19,1.14]
[1750165705021,1.13762995,654.41,654.2,1.46]
[1750165705624,1.13762995,654.41,654.21,1.259]
[1750165705824,2.28382494,654.66,654.21,1.259]
[1750165705825,1.13762995,654.42,654.21,1.259]
[1750165706220,1.13762995,654.41,654.21,1.259]
[1750165706722,1.13762995,654.41,654.22,1.427]
[1750165710324,1.13762995,654.42,654.22,1.427]
[1750165710527,1.13762995,654.52,654.22,1.427]
[1750165712224,1.13762995,654.51,654.22,1.427]
[1750165714226,1.13762995,654.5,654.22,1.427]
[1750165715129,1.13762995,654.49,654.22,1.427]
[1750165718235,1.13762995,654.48,654.22,1.427]
[1750165719632,1.13762995,654.48,654.23,1.439]
[1750165720034,1.13762995,654.47,654.23,1.439]
[1750165720434,1.13762995,654.41,654.23,1.439]
[1750165721333,1.13762995,654.4,654.23,1.439]
[1750165722137,1.52343712,654.53,654.23,1.439]
[1750165722333,1.13873743,654.38,654.23,1.439]
[1750165722838,1.13873743,654.34,654.23,1.439]
[1750165723735,1.13873743,654.33,654.23,1.439]
[1750165724041,1.13873743,654.34,654.23,1.439]
[1750165725037,1.13873743,654.34,654.24,1.14]
[1750165725239,1.13873743,654.33,654.24,1.14]
[1750165725439,1.13873743,654.33,654.25,1.592]
[1750165727440,1.13873743,654.32,654.25,1.592]
[1750165728340,1.13873743,654.31,654.25,1.592]
[1750165729837,1.13873743,654.29,654.25,1.592]
[1750165730336,1.13873743,654.27,654.25,1.592]
[1750165731036,1.52343712,654.41,654.25,1.592]
[1750165731236,1.52343712,654.4,654.25,1.592]
[1750165731437,1.52343712,654.39,654.25,1.592]
[1750165731736,1.52343712,654.4,654.25,1.592]
[1750165732040,1.52343712,654.37,654.25,1.592]
[1750165732238,0.26586601,654.9,654.25,1.592]
[1750165732239,1.52343712,654.36,654.25,1.592]
[1750165732441,1.52343712,654.35,654.25,1.592]
[1750165732942,1.52343712,654.36,654.25,1.592]
[1750165733238,1.52343712,654.34,654.25,1.592]
[1750165733538,1.52343712,654.33,654.25,1.592]
[1750165734243,1.52343712,654.32,654.25,1.592]
[1750165735045,1.52343712,654.33,654.25,1.592]
[1750165735246,1.52343712,654.31,654.25,1.592]
[1750165736149,1.52343712,654.3,654.25,1.592]
[1750165737245,1.52343712,654.29,654.25,1.592]
[1750165738150,1.52343712,654.28,654.25,1.592]
[1750165738349,1.52343712,654.31,654.25,1.592]
[1750165738545,1.52343712,654.35,654.25,1.592]
[1750165739050,1.52343712,654.37,654.25,1.592]
[1750165739245,1.52343712,654.36,654.25,1.592]
[1750165739450,1.52343712,654.38,654.25,1.592]
[1750165739751,1.52343712,654.39,654.25,1.592]
[1750165740451,1.52343712,654.38,654.25,1.592]
[1750165741352,1.52343712,654.33,654.25,1.592]
[1750165741549,1.52343712,654.3,654.24,1.14]
[1750165742048,1.52343712,654.29,654.24,1.14]
[1750165742350,1.52343712,654.26,654.24,1.14]
[1750165742555,1.52343712,654.25,654.24,1.14]
[1750165742854,2.28382494,654.37,654.24,1.14]
[1750165743857,2.28382494,654.37,654.25,1.645]
[1750165744757,1.52531899,654.26,654.25,1.645]
[1750165752064,2.28382494,654.38,654.25,1.645]
[1750165752767,2.28382494,654.37,654.25,1.645]
[1750165754769,2.28382494,654.33,654.25,1.645]
[1750165757170,2.28382494,654.32,654.25,1.645]
[1750165757366,2.28382494,654.31,654.25,1.645]
[1750165757565,2.28382494,654.32,654.25,1.645]
[1750165758270,2.28382494,654.33,654.25,1.645]
[1750165761171,2.28382494,654.34,654.25,1.645]
[1750165761975,2.28382494,654.35,654.25,1.645]
[1750165763175,2.28382494,654.34,654.25,1.645]
[1750165763373,2.28382494,654.35,654.25,1.645]
[1750165763774,2.28382494,654.34,654.25,1.645]
[1750165763975,2.28382494,654.36,654.25,1.645]
[1750165765172,0.26586601,654.9,654.25,1.645]
[1750165765377,0.30539479,654.89,654.25,1.645]
[1750165765578,2.28773755,654.36,654.25,1.645]
[1750165767277,2.28773755,654.37,654.25,1.645]
[1750165767973,1.5251485,654.26,654.25,1.645]
[1750165768177,1.5251485,654.28,654.25,1.645]
[1750165772178,1.5251485,654.27,654.25,1.645]
[1750165772379,1.5251485,654.28,654.25,1.645]
[1750165772882,1.5251485,654.28,654.24,1.013]
[1750165773876,1.5251485,654.27,654.24,1.013]
[1750165775176,1.5251485,654.26,654.24,1.013]
[1750165778082,2.28773755,654.34,654.24,1.013]
[1750165778382,2.28773755,654.33,654.24,1.013]
[1750165779576,2.28773755,654.32,654.24,1.013]
[1750165781297,2.28773755,654.31,654.24,1.013]
[1750165781781,2.28773755,654.29,654.24,1.013]
[1750165782178,2.28773755,654.28,654.24,1.013]
[1750165782881,2.28773755,654.25,654.24,1.013]
[1750165783082,2.28773755,654.26,654.24,1.013]
[1750165783287,2.28773755,654.25,654.24,1.013]
[1750165784583,3.81289592,654.73,654.24,1.013]
[1750165784784,0.30547409,654.72,654.24,1.013]
[1750165785583,2.29132867,654.27,654.24,1.013]
[1750165786987,2.29132867,654.29,654.24,1.013]
[1750165787284,2.29132867,654.28,654.24,1.013]
[1750165788682,2.29132867,654.29,654.24,1.013]
[1750165789185,2.29132867,654.3,654.24,1.013]
[1750165789685,2.29132867,654.32,654.24,1.013]
[1750165790086,2.29132867,654.31,654.24,1.013]
[1750165791192,2.29132867,654.32,654.24,1.013]
[1750165791489,2.29132867,654.31,654.24,1.013]
[1750165793488,2.29132867,654.33,654.24,1.013]
[1750165794196,2.29132867,654.34,654.24,1.013]
[1750165794394,2.29132867,654.35,654.24,1.013]
[1750165794789,2.29132867,654.37,654.24,1.013]
[1750165795591,2.29132867,654.36,654.24,1.013]
[1750165797693,2.29132867,654.37,654.24,1.013]
[1750165798494,1.52757185,654.25,654.24,1.013]
[1750165799895,1.52766829,654.25,654.24,1.013]
[1750165802197,2.29132867,654.38,654.24,1.013]
[1750165802400,1.52760597,654.25,654.24,1.013]
[1750165803302,2.29132867,654.36,654.24,1.013]
[1750165803501,1.52754867,654.25,654.24,1.013]
[1750165803998,1.52754867,654.26,654.24,1.013]
[1750165804297,1.52754867,654.25,654.24,1.013]
[1750165804699,2.29132867,654.37,654.24,1.013]
[1750165805204,0.30547409,654.72,654.24,1.013]
[1750165805205,1.52744998,654.26,654.24,1.013]
[1750165805704,1.52744998,654.25,654.24,1.013]
[1750165806605,2.29132867,654.37,654.24,1.013]
[1750165807307,2.29132867,654.36,654.24,1.013]
[1750165807505,2.29132867,654.35,654.24,1.013]
[1750165807805,2.29132867,654.36,654.24,1.013]
[1750165809112,1.14539982,654.25,654.24,1.013]
[1750165809312,1.52719976,654.46,654.24,1.013]
[1750165810211,1.52719976,654.46,654.18,1.429]
[1750165810512,1.14546696,654.21,654.18,1.429]
[1750165810711,1.14546696,654.23,654.19,1.439]
[1750165812511,1.14546696,654.24,654.19,1.439]
[1750165813512,1.14546696,654.23,654.19,1.439]
[1750165813719,1.14546696,654.24,654.19,1.439]
[1750165814620,1.14546696,654.23,654.19,1.439]
[1750165815420,1.14546696,654.24,654.19,1.439]
[1750165819021,1.52719976,654.34,654.19,1.439]
[1750165820318,1.52719976,654.35,654.19,1.439]
[1750165821322,1.52719976,654.34,654.19,1.439]
[1750165822825,1.14526448,654.22,654.19,1.439]
[1750165825526,0.30547409,654.72,654.19,1.439]
[1750165825527,1.14526448,654.23,654.19,1.439]
[1750165826728,1.14526448,654.21,654.19,1.439]
[1750165828231,1.14526448,654.2,654.19,1.439]
[1750165832434,0.26600929,654.32,654.19,1.439]
[1750165834737,0.26600929,654.32,654.18,1.429]
[1750165835438,1.52719976,654.3,654.18,1.429]
[1750165837135,1.52719976,654.29,654.18,1.429]
[1750165837336,1.52719976,654.29,654.15,2.432]
[1750165837940,1.52719976,654.3,654.15,2.432]
[1750165838140,1.52719976,654.27,654.15,2.432]
[1750165839442,1.52719976,654.24,654.15,2.432]
[1750165839743,1.52719976,654.23,654.15,2.432]
[1750165840238,1.52719976,654.24,654.15,2.432]
[1750165841142,1.52719976,654.23,654.15,2.432]
[1750165841643,1.52719976,654.2,654.15,2.432]
[1750165843342,1.52719976,654.19,654.15,2.432]
[1750165846043,1.52719976,654.23,654.15,2.432]
[1750165847846,1.52719976,654.22,654.15,2.432]
[1750165848243,1.52719976,654.21,654.15,2.432]
[1750165848942,1.52719976,654.2,654.15,1.347]
[1750165849144,1.52719976,654.21,654.15,1.347]
[1750165849343,1.52719976,654.2,654.15,1.347]
[1750165850444,1.52719976,654.19,654.15,1.347]
[1750165853446,1.52719976,654.2,654.15,1.347]
[1750165854750,1.52719976,654.19,654.15,1.347]
[1750165855050,1.52719976,654.2,654.15,1.347]
[1750165855448,1.52719976,654.22,654.15,1.347]
[1750165855952,1.52719976,654.2,654.15,1.347]
[1750165857551,1.52719976,654.21,654.15,1.347]
[1750165857754,1.52719976,654.21,654.1,1.649]
[1750165858050,1.52719976,654.2,654.1,1.649]
[1750165858853,1.52719976,654.21,654.1,1.649]
[1750165859352,1.52719976,654.21,654.11,1.565]
[1750165859654,1.52719976,654.2,654.11,1.565]
[1750165860054,1.52719976,654.25,654.11,1.565]
[1750165863252,1.52719976,654.24,654.11,1.565]
[1750165863456,1.52719976,654.25,654.11,1.565]
[1750165864657,1.52719976,654.26,654.11,1.565]
[1750165865153,1.52719976,654.25,654.11,1.565]
[1750165869961,1.52719976,654.2,654.11,1.565]
[1750165870562,1.52719976,654.19,654.11,1.565]
[1750165870763,0.26600929,654.32,654.11,1.565]
[1750165870764,1.52719976,654.2,654.11,1.565]
[1750165871061,1.52719976,654.27,654.11,1.565]
[1750165874067,1.52719976,654.26,654.11,1.565]
[1750165874367,1.52719976,654.27,654.11,1.565]
[1750165874567,1.14521941,654.13,654.11,1.565]
[1750165875268,1.14521941,654.15,654.11,1.565]
[1750165875866,1.14521941,654.14,654.11,1.565]
[1750165876868,1.14521941,654.16,654.11,1.565]
[1750165880269,1.14521941,654.15,654.11,1.565]
[1750165880768,1.14521941,654.14,654.11,1.565]
[1750165881370,1.14521941,654.13,654.11,1.565]
[1750165883973,1.14521941,654.14,654.11,1.565]
[1750165884169,1.14521941,654.15,654.11,1.565]
[1750165884475,1.14521941,654.14,654.11,1.565]
[1750165884873,1.14521941,654.15,654.11,1.565]
[1750165885069,1.14521941,654.17,654.11,1.565]
[1750165885968,1.14521941,654.18,654.11,1.565]
[1750165888374,1.14521941,654.16,654.11,1.565]
[1750165889379,1.14521941,654.16,654.04,1.333]
[1750165891576,0.26600929,654.32,654.04,1.333]
[1750165891577,1.14521941,654.17,654.04,1.333]
[1750165892079,1.14521941,654.16,654.05,1.551]
[1750165892580,1.14521941,654.17,654.05,1.551]
[1750165893878,1.14521941,654.18,654.05,1.551]
[1750165894979,1.14521941,654.23,654.05,1.551]
[1750165895784,1.14521941,654.25,654.05,1.551]
[1750165896386,1.14521941,654.26,654.05,1.551]
[1750165896679,1.14521941,654.28,654.05,1.551]
[1750165897484,1.14521941,654.29,654.05,1.551]
[1750165898381,1.14521941,654.28,654.05,1.551]
[1750165898880,1.14521941,654.29,654.05,1.551]
[1750165899080,1.14521941,654.28,654.05,1.551]
[1750165899382,1.14521941,654.31,654.05,1.551]
[1750165899581,1.14521941,654.32,654.05,1.551]
[1750165900085,1.14521941,654.33,654.05,1.551]
[1750165900285,1.14521941,654.32,654.05,1.551]
[1750165900581,1.14521941,654.33,654.05,1.551]
[1750165901580,1.14521941,654.34,654.05,1.551]
[1750165902483,1.14521941,654.35,654.05,1.551]
[1750165903086,1.14521941,654.35,654.06,1.626]
[1750165903884,1.14521941,654.36,654.06,1.626]
[1750165905386,1.14521941,654.36,654.07,1.73]
[1750165905787,1.14521941,654.35,654.07,1.73]
[1750165907992,1.14521941,654.36,654.07,1.73]
[1750165908187,1.14521941,654.35,654.07,1.73]
[1750165908488,1.14521941,654.36,654.07,1.73]
[1750165909195,1.14521941,654.35,654.07,1.73]
[1750165909591,1.14521941,654.36,654.07,1.73]
[1750165911797,1.14521941,654.35,654.07,1.73]
[1750165912296,1.14521941,654.43,654.07,1.73]
[1750165912793,1.14521941,654.44,654.07,1.73]
[1750165913093,0.26598794,654.45,654.07,1.73]
[1750165913094,1.14521941,654.43,654.07,1.73]
[1750165913698,1.14521941,654.44,654.07,1.73]
[1750165913994,1.14521941,654.44,654.08,1.44]
[1750165915098,1.41120735,654.45,654.08,1.44]
[1750165916900,1.14521941,654.5,654.08,1.44]
[1750165917099,1.14521941,654.51,654.08,1.44]
[1750165917697,1.14521941,654.54,654.08,1.44]
[1750165917997,1.14521941,654.55,654.08,1.44]
[1750165918598,1.14521941,654.56,654.08,1.44]
[1750165919403,1.14521941,654.53,654.08,1.44]
[1750165919703,1.14521941,654.5,654.08,1.44]
[1750165919902,1.14521941,654.51,654.08,1.44]
[1750165920503,0.26593915,654.59,654.08,1.44]
[1750165920504,1.14521941,654.52,654.08,1.44]
[1750165920703,1.14521941,654.51,654.08,1.44]
[1750165921804,1.14521941,654.5,654.08,1.44]
[1750165922005,1.14521941,654.51,654.08,1.44]
[1750165925304,1.14521941,654.52,654.08,1.44]
[1750165925609,1.14521941,654.51,654.08,1.44]
[1750165925910,1.14521941,654.51,654.07,1.73]
[1750165926110,0.30547409,654.72,654.07,1.73]
[1750165926510,0.30547409,654.72,654.08,1.438]
[1750165928913,0.26590461,654.73,654.09,1.439]
[1750165934420,0.26590461,654.73,654.1,1.223]
[1750165938420,1.14521941,654.68,654.1,1.223]
[1750165938622,1.14521941,654.66,654.1,1.223]
[1750165938818,1.14521941,654.67,654.1,1.223]
[1750165939023,1.14521941,654.66,654.1,1.223]
[1750165939226,1.14521941,654.66,654.11,1.325]
[1750165940621,1.14521941,654.65,654.11,1.325]
[1750165941727,1.14521941,654.68,654.11,1.325]
[1750165941926,1.14521941,654.67,654.11,1.325]
[1750165943530,1.14521941,654.66,654.11,1.325]
[1750165948041,1.14521941,654.65,654.11,1.325]
[1750165949541,0.26590461,654.73,654.11,1.325]
[1750165949542,1.14521941,654.64,654.11,1.325]
[1750165951443,1.14521941,654.61,654.11,1.325]
[1750165951639,1.14521941,654.6,654.11,1.325]
[1750165952144,1.14521941,654.59,654.11,1.325]
[1750165952346,1.14521941,654.6,654.11,1.325]
[1750165952845,1.14521941,654.6,654.12,1.376]
[1750165953540,1.14521941,654.59,654.12,1.376]
[1750165954848,1.14521941,654.58,654.12,1.376]
[1750165955144,1.14521941,654.57,654.12,1.376]
[1750165956043,1.14521941,654.56,654.12,1.376]
[1750165956449,1.14521941,654.56,654.13,1.432]
[1750165957050,1.14521941,654.56,654.14,1.439]
[1750165959046,1.14521941,654.55,654.14,1.439]
[1750165959253,1.14521941,654.56,654.14,1.439]
[1750165959452,1.14521941,654.55,654.14,1.439]
[1750165960654,1.14521941,654.54,654.14,1.439]
[1750165962252,1.14521941,654.53,654.14,1.439]
[1750165962749,1.14521941,654.52,654.14,1.439]
[1750165963450,1.52719976,654.63,654.14,1.439]
[1750165963656,1.14061419,654.52,654.14,1.439]
[1750165964556,1.14061419,654.51,654.14,1.439]
[1750165966557,1.14061419,654.5,654.14,1.439]
[1750165967358,1.14061419,654.5,654.15,1.319]
[1750165969561,1.14061419,654.49,654.15,1.319]
[1750165970061,1.14061419,654.5,654.15,1.319]
[1750165970564,1.14061419,654.49,654.15,1.319]
[1750165973560,1.14061419,654.48,654.15,1.319]
[1750165975662,1.14061419,654.47,654.15,1.319]
[1750165977664,1.14061419,654.46,654.15,1.319]
[1750165979165,1.14061419,654.47,654.15,1.319]
[1750165979665,1.14061419,654.46,654.15,1.319]
[1750165979868,1.14061419,654.47,654.15,1.319]
[1750165981766,1.14061419,654.47,654.16,1.299]
[1750165983574,1.14061419,654.46,654.16,1.299]
[1750165983773,1.14061419,654.47,654.16,1.299]
[1750165984977,1.14061419,654.47,654.17,1.24]
[1750165985678,1.14061419,654.5,654.17,1.24]
[1750165985878,1.14061419,654.55,654.17,1.24]
[1750165986178,1.14061419,654.58,654.17,1.24]
[1750165986676,1.14061419,654.59,654.17,1.24]
[1750165987078,1.14061419,654.6,654.17,1.24]
[1750165987479,1.14061419,654.64,654.17,1.24]
[1750165988578,1.14061419,654.63,654.17,1.24]
[1750165992684,1.14061419,654.62,654.17,1.24]
[1750165993380,1.14061419,654.63,654.17,1.24]
[1750165993779,1.14061419,654.62,654.17,1.24]
[1750165997490,1.14061419,654.61,654.17,1.24]
[1750165997790,0.26590461,654.73,654.17,1.24]
[1750165997791,1.14061419,654.59,654.17,1.24]
[1750165999790,1.14061419,654.59,654.18,1.564]